{"text_format":"3","workbook":"xlsx","n_sheets":1,"sheets":["ค่าใช้จ่ายในการเริ่มต้นธุรกิจ"],"not_rendered":{"defined_names":1},"read":"whole","date_system":"1900"}

{"sheet":"ค่าใช้จ่ายในการเริ่มต้นธุรกิจ","index":0,"n_rows":120,"n_cols":4,"rows_kept":120,"merged":[[1,1,1,3],[60,1,60,3],[82,1,82,3]]}
["ค่าใช้จ่ายในการเริ่มต้นธุรกิจ",null,null,"ชื่อบริษัท จำกัด"]
[null,"หมายเหตุก่อนการใช้เวิร์กชีตนี้\nเกือบทุกคนที่เคยเริ่มต้นธุรกิจต่างประเมินค่าใช้จ่ายต่ำเกินไป และประสบกับอันตรายที่เกิดจากการทำธุรกิจด้วยเงินทุนสำรองที่ไม่เพียงพอ จุดสำคัญในการหลีกเลี่ยงอันตรายที่แอบแฝงก็คือการทำการค้นคว้าและวิจัยอย่างถี่ถ้วน เทมเพลตค่าใช้จ่ายในการเริ่มต้นธุรกิจของเราจะนำทางคุณผ่านกระบวนการการดำเนินธุรกิจ\n\nเริ่มโดยการประมาณค่าใช้จ่าย\nคุณจะมีค่าใช้จ่ายอะไรบ้างในการก่อตั้งและดำเนินธุรกิจ  กุญแจที่จะนำไปสู่ความถูกต้องในส่วนนี้ก็คือการใส่ใจรายละเอียด สำหรับค่าใช้จ่ายแต่ละประเภท ให้ตั้งรายการของทุกอย่างที่คุณต้องซื้อ ซึ่งจะรวมถึงทรัพย์สินที่จับต้องได้ (ตัวอย่างเช่น เครื่องมือ สินค้าคงคลัง) และบริการ (ตัวอย่างเช่น การปรับรูปแบบใหม่ การประกัน) จากนั้นกำหนดว่าคุณจะซื้อสินค้าและบริการเหล่านี้จากที่ใด ให้สืบค้นมากกว่าผู้ขายหนึ่งราย เช่น การเปรียบเทียบราคาเพื่อหาราคาที่ดีที่สุด อย่าดูที่ราคาเพียงอย่างเดียว เงื่อนไขการชำระเงิน การส่งสินค้า ความน่าเชื่อถือ และบริการก็เป็นสิ่งสำคัญเช่นเดียวกัน "]
[]
[null,"ค่าใช้จ่ายในการเริ่มต้นธุรกิจ"]
[null,"อาคาร/อสังหาริมทรัพย์"," ","จำนวน"]
[null,"การซื้อ",null,{"v":0,"d":"฿0.00"}]
[null,"การก่อสร้าง",null,{"v":0,"d":"฿0.00"}]
[null,"การปรับปรุงใหม่",null,{"v":0,"d":"฿0.00"}]
[null,"อื่นๆ",null,{"v":0,"d":"฿0.00"}]
[null,"ผลรวม",null,{"$f":"SUBTOTAL(109,อสังหาริมทรัพย์[จำนวน])","v":{"v":0,"d":"฿0.00"}}]
[]
[null,"การปรับปรุงสิทธิในที่ดิน"," ","จำนวน"]
[null,"รายการ 1",null,{"v":0,"d":"฿0.00"}]
[null,"รายการ 2",null,{"v":0,"d":"฿0.00"}]
[null,"รายการ 3",null,{"v":0,"d":"฿0.00"}]
[null,"รายการ 4",null,{"v":0,"d":"฿0.00"}]
[null,"ผลรวม",null,{"$f":"SUBTOTAL(109,การปรับปรุง[จำนวน])","v":{"v":0,"d":"฿0.00"}}]
[]
[null,"รายการเครื่องมือประเภททุน"," ","จำนวน"]
[null,"เฟอร์นิเจอร์",null,{"v":0,"d":"฿0.00"}]
[null,"อุปกรณ์",null,{"v":0,"d":"฿0.00"}]
[null,"เฟอร์นิเจอร์ที่ติดตั้ง",null,{"v":0,"d":"฿0.00"}]
[null,"เครื่องจักร",null,{"v":0,"d":"฿0.00"}]
[null,"อื่นๆ",null,{"v":0,"d":"฿0.00"}]
[null,"ผลรวม",null,{"$f":"SUBTOTAL(109,เงินทุน[จำนวน])","v":{"v":0,"d":"฿0.00"}}]
[]
[null,"สถานที่และค่าใช้จ่ายในการบริหาร"," ","จำนวน"]
[null,"ค่าเช่า",null,{"v":0,"d":"฿0.00"}]
[null,"ค่ามัดจำสำหรับสาธารณูปโภค",null,{"v":0,"d":"฿0.00"}]
[null,"ค่าธรรมเนียมทางกฎหมายและการทำบัญชี",null,{"v":0,"d":"฿0.00"}]
[null,"ค่าใช้จ่ายล่วงหน้า",null,{"v":0,"d":"฿0.00"}]
[null,"เงินเดือนก่อนการเปิดธุรกิจ ",null,{"v":0,"d":"฿0.00"}]
[null,"อื่นๆ",null,{"v":0,"d":"฿0.00"}]
[null,"ผลรวม",null,{"$f":"SUBTOTAL(109,ค่าใช้จ่ายในการบริหาร[จำนวน])","v":{"v":0,"d":"฿0.00"}}]
[]
[null,"สินค้าคงคลังตอนแรกเริ่มธุรกิจ"," ","จำนวน"]
[null,"ประเภทที่ 1",null,{"v":0,"d":"฿0.00"}]
[null,"ประเภทที่ 2",null,{"v":0,"d":"฿0.00"}]
[null,"ประเภทที่ 3",null,{"v":0,"d":"฿0.00"}]
[null,"ประเภทที่ 4",null,{"v":0,"d":"฿0.00"}]
[null,"ประเภทที่ 5",null,{"v":0,"d":"฿0.00"}]
[null,"ผลรวม",null,{"$f":"SUBTOTAL(109,สินค้าคงคลังตอนแรกเริ่มธุรกิจ[จำนวน])","v":{"v":0,"d":"฿0.00"}}]
[]
[null,"ค่าใช้จ่ายด้านโฆษณาและการส่งเสริมการขาย"," ","จำนวน"]
[null,"การโฆษณา",null,{"v":0,"d":"฿0.00"}]
[null,"ป้าย",null,{"v":0,"d":"฿0.00"}]
[null,"การพิมพ์",null,{"v":0,"d":"฿0.00"}]
[null,"ท่องเที่ยว/ความบันเทิง",null,{"v":0,"d":"฿0.00"}]
[null,"อื่นๆ/ประเภทอื่นๆ",null,{"v":0,"d":"฿0.00"}]
[null,"ผลรวม",null,{"$f":"SUBTOTAL(109,ค่าใช้จ่ายในการโฆษณา[จำนวน])","v":{"v":0,"d":"฿0.00"}}]
[]
[null,"ค่าใช้จ่ายอื่นๆ"," ","จำนวน"]
[null,"ค่าใช้จ่ายอื่นๆ 1",null,{"v":0,"d":"฿0.00"}]
[null,"ค่าใช้จ่ายอื่นๆ 2",null,{"v":0,"d":"฿0.00"}]
[null,"ผลรวม",null,{"$f":"SUBTOTAL(109,ค่าใช้จ่ายอื่นๆ[จำนวน])","v":{"v":0,"d":"฿0.00"}}]
[]
[null,"เงินสำรองสำหรับเหตุฉุกเฉิน",null,{"v":0,"d":"฿0.00"}]
[]
[null,"เงินทุนหมุนเวียน ",null,{"v":0,"d":"฿0.00"}]
[]
[null,"เพิ่มเงินสำรองสำหรับเหตุฉุกเฉิน\nตรวจสอบให้แน่ใจว่าได้อธิบายในส่วนบรรยายของคุณว่าคุณตัดสินใจแบ่งเงินไว้สำรองไว้อย่างไร \n\nกำหนดกระแสเงินสดของคุณ\nคุณไม่สามารถเปิดบัญชีธนาคารเปล่าได้ คุณต้องสำรองเงินสดเพื่อให้รองรับค่าใช้จ่ายได้ในขณะที่กำลังดำเนินธุรกิจของคุณ สุดท้ายนี้ คุณควรจะวางแผนกระแสเงินสดของทั้ง 12 เดือน ซึ่งเป็นจุดที่คุณจะต้องประมาณความต้องการเงินทุนหมุนเวียนของคุณ สำหรับตอนนี้ ให้เว้นว่างไว้หรือใส่ค่าประมาณเท่าที่คุณจะสามารถประมาณได้ หลังจากที่คุณได้เสร็จสิ้นในส่วนของกระแสเงินสดแล้ว คุณสามารถกลับมาและใส่จำนวนที่ได้ศึกษามาอย่างดีแล้ว\n\nใส่แหล่งเงินทุนของคุณ\nตอนนี้คุณสามารถประมาณว่าคุณต้องใช้เงินทุนเท่าไรกับการเริ่มธุรกิจ คุณควรหันความสนใจไปที่ส่วนบนสุดของแผ่นงาน ใส่จำนวนที่คุณจะใส่เอง จำนวนเงินที่คู่ค้าหรือผู้ลงทุนคนอื่นๆ จะใส่ และเงินที่จะได้มาจากการกู้ยืม"]
[]
[null,"แหล่งเงินทุน"]
[null,"การลงทุนของเจ้าของ (ชื่อและ % ของความเป็นเจ้าของ)"," ","จำนวน"]
[null,"ชื่อของคุณและเปอร์เซ็นต์ของความเป็นเจ้าของ",null,{"v":0,"d":"฿0.00"}]
[null,"ผู้ลงทุนคนอื่นๆ",null,{"v":0,"d":"฿0.00"}]
[null,"ผู้ลงทุนคนอื่นๆ",null,{"v":0,"d":"฿0.00"}]
[null,"ผู้ลงทุนคนอื่นๆ",null,{"v":0,"d":"฿0.00"}]
[null,"ผลรวม",null,{"$f":"SUBTOTAL(109,การลงทุนของเจ้าของ[จำนวน])","v":{"v":0,"d":"฿0.00"}}]
[]
[null,"เงินกู้ธนาคาร"," ","จำนวน"]
[null,"ธนาคาร 1",null,{"v":0,"d":"฿0.00"}]
[null,"ธนาคาร 2",null,{"v":0,"d":"฿0.00"}]
[null,"ธนาคาร 3",null,{"v":0,"d":"฿0.00"}]
[null,"ธนาคาร 4",null,{"v":0,"d":"฿0.00"}]
[null,"ผลรวม",null,{"$f":"SUBTOTAL(109,เงินกู้ธนาคาร[จำนวน])","v":{"v":0,"d":"฿0.00"}}]
[]
[null,"เงินกู้อื่น ๆ"," ","จำนวน"]
[null,"แหล่งเงินทุน 1",null,{"v":0,"d":"฿0.00"}]
[null,"แหล่งเงินทุน 2",null,{"v":0,"d":"฿0.00"}]
[null,"ผลรวม",null,{"$f":"SUBTOTAL(109,เงินกู้อื่นๆ[จำนวน])","v":{"v":0,"d":"฿0.00"}}]
[]
[null,"แสดงหลักฐานของหลักทรัพย์ประกัน\nถ้าคุณจะใช้แผนนี้เพื่อสนับสนุนการขอเงินกู้ธนาคาร ใช้ส่วนที่ใกล้กับส่วนล่างสุดเพื่อแสดงทรัพย์สินที่สามารถใช้เป็นหลักทรัพย์ประกันได้เพื่อใช้เป็นหลักประกันเงินกู้และการประมาณมูลค่ารายการเหล่านี้ เตรียมพร้อมสำหรับการแสดงหลักฐานเกี่ยวกับมูลค่าหลักทรัพย์ประกันของคุณโดยประมาณ"]
[]
[null,"ใบแจ้งยอดโดยสรุป"]
[null,"แหล่งเงินทุน"," ","ผลรวม"]
[null,"การลงทุนของเจ้าของและคนอื่นๆ",null,{"$f":"การลงทุนของเจ้าของ[[#Totals],[จำนวน]]","v":{"v":0,"d":"฿0.00"}}]
[null,"เงินกู้ธนาคาร",null,{"$f":"เงินกู้ธนาคาร[[#Totals],[จำนวน]]","v":{"v":0,"d":"฿0.00"}}]
[null,"เงินกู้อื่น ๆ",null,{"$f":"เงินกู้อื่นๆ[[#Totals],[จำนวน]]","v":{"v":0,"d":"฿0.00"}}]
[null,"ผลรวม",null,{"$f":"SUBTOTAL(109,แหล่งเงินทุน[ผลรวม])","v":{"v":0,"d":"฿0.00"}}]
[]
[null,"ค่าใช้จ่ายในการเริ่มต้นธุรกิจ"," ","ผลรวม"]
[null,"อาคาร/อสังหาริมทรัพย์",null,{"$f":"อสังหาริมทรัพย์[[#Totals],[จำนวน]]","v":{"v":0,"d":"฿0.00"}}]
[null,"การปรับปรุงสิทธิในที่ดิน",null,{"$f":"การปรับปรุง[[#Totals],[จำนวน]]","v":{"v":0,"d":"฿0.00"}}]
[null,"เครื่องมือประเภททุน",null,{"$f":"เงินทุน[[#Totals],[จำนวน]]","v":{"v":0,"d":"฿0.00"}}]
[null,"สถานที่/ค่าใช้จ่ายในการบริหาร",null,{"$f":"ค่าใช้จ่ายในการบริหาร[[#Totals],[จำนวน]]","v":{"v":0,"d":"฿0.00"}}]
[null,"สินค้าคงคลังตอนแรกเริ่มธุรกิจ",null,{"$f":"สินค้าคงคลังตอนแรกเริ่มธุรกิจ[[#Totals],[จำนวน]]","v":{"v":0,"d":"฿0.00"}}]
[null,"ค่าใช้จ่ายด้านโฆษณา/การส่งเสริมการขาย",null,{"$f":"ค่าใช้จ่ายในการโฆษณา[[#Totals],[จำนวน]]","v":{"v":0,"d":"฿0.00"}}]
[null,"ค่าใช้จ่ายอื่นๆ",null,{"$f":"ค่าใช้จ่ายอื่นๆ[[#Totals],[จำนวน]]","v":{"v":0,"d":"฿0.00"}}]
[null,"เงินทุนสำรองจ่าย",null,{"$f":"SUM(ค่าใช้จ่ายในการเริ่มต้นธุรกิจ!$C$57)","v":{"v":0,"d":"฿0.00"}}]
[null,"เงินทุนหมุนเวียน",null,{"$f":"SUM(ค่าใช้จ่ายในการเริ่มต้นธุรกิจ!$C$59)","v":{"v":0,"d":"฿0.00"}}]
[null,"ผลรวม",null,{"$f":"SUBTOTAL(109,ค่าใช้จ่ายในการเริ่มต้นธุรกิจ[ผลรวม])","v":{"v":0,"d":"฿0.00"}}]
[]
[null,"หลักประกันและหลักทรัพย์ประกันสำหรับคำขอเงินกู้"]
[null,"หลักทรัพย์ประกันสำหรับเงินกู้","คำอธิบาย","มูลค่า"]
[null,"อสังหาริมทรัพย์",null,{"v":0,"d":"฿0.00"}]
[null,"เอกสารประกอบอื่นๆ",null,{"v":0,"d":"฿0.00"}]
[null,"เอกสารประกอบอื่นๆ",null,{"v":0,"d":"฿0.00"}]
[null,"เอกสารประกอบอื่นๆ",null,{"v":0,"d":"฿0.00"}]
[null,"ผลรวม",null,{"$f":"SUBTOTAL(109,หลักทรัพย์ประกัน[มูลค่า])","v":{"v":0,"d":"฿0.00"}}]
[]
[null,"เจ้าของ"," ","  "]
[null,"ใส่ชื่อของคุณที่นี่"]
[null,"เจ้าของคนอื่นๆ"]
[null,"เจ้าของคนอื่นๆ"]
[]
[null,"ผู้ค้ำประกันเงินกู้ (ผู้อื่นนอกเหนือจากเจ้าของ)"," ","  "]
[null,"ผู้ค้ำประกันเงินกู้ 1"]
[null,"ผู้ค้ำประกันเงินกู้ 2"]
[null,"ผู้ค้ำประกันเงินกู้ 3"]